bitfinex/quotes_BTCUSD_20220213
["timestamp","ask_amount","ask_price","bid_price","bid_amount"]
[1644737821128,0.13279124,42380.0,42379.0,0.58198003]
[1644737822730,0.13279124,42380.0,42379.0,1.580039]
[1644737823332,0.13279124,42380.0,42379.0,1.330039]
[1644737825171,0.13279124,42380.0,42379.0,1.58097472]
[1644737826573,0.13279124,42380.0,42379.0,1.330039]
[1644737826773,0.13279124,42380.0,42379.0,1.64062057]
[1644737827173,0.13279124,42380.0,42379.0,1.38968485]
[1644737827832,0.13279124,42380.0,42379.0,1.69078895]
[1644737828831,0.13279124,42380.0,42379.0,1.38968485]
[1644737829035,0.13279124,42380.0,42379.0,1.69078895]
[1644737829833,0.13279124,42380.0,42379.0,1.38968485]
[1644737830033,0.13279124,42380.0,42379.0,1.69078895]
[1644737830635,0.13279124,42380.0,42379.0,1.33545646]
[1644737833381,0.13279124,42380.0,42379.0,1.48545646]
[1644737833594,0.13279124,42380.0,42379.0,2.73782315]
[1644737833983,0.13279124,42380.0,42379.0,2.38668139]
[1644737834580,0.13279124,42380.0,42379.0,2.73788738]
[1644737835221,0.13279124,42380.0,42379.0,2.70095077]
[1644737835422,0.13279124,42380.0,42379.0,2.80095077]
[1644737835824,0.13279124,42380.0,42379.0,2.49989685]
[1644737836324,0.13279124,42380.0,42379.0,2.80095077]
[1644737836521,0.13279124,42380.0,42379.0,2.49989685]
[1644737837324,0.13279124,42380.0,42379.0,2.80094455]
[1644737837522,0.13279124,42380.0,42379.0,2.49989685]
[1644737837923,0.13279124,42380.0,42379.0,2.80094347]
[1644737840382,0.13279124,42380.0,42379.0,2.14064347]
[1644737840983,0.13279124,42380.0,42379.0,2.14086532]
[1644737841182,0.13279124,42380.0,42379.0,2.14064347]
[1644737844427,0.13279124,42380.0,42379.0,1.83959685]
[1644737845233,0.13279124,42380.0,42379.0,1.8398187]
[1644737846877,0.13279124,42380.0,42379.0,1.83959685]
[1644737849087,0.13279124,42380.0,42379.0,1.832751]
[1644737849584,0.13279124,42380.0,42378.0,0.00022185]
[1644737849784,0.20614124,42380.0,42379.0,0.20071687]
[1644737850032,0.20614124,42380.0,42378.0,0.20093872]
[1644737850228,0.20614124,42380.0,42378.0,0.20071687]
[1644737850728,0.20614124,42380.0,42378.0,0.20093872]
[1644737850928,0.13279124,42380.0,42378.0,0.20093872]
[1644737851128,0.13279124,42380.0,42379.0,0.20071687]
[1644737851329,0.13279124,42380.0,42379.0,0.20093872]
[1644737851527,0.13279124,42380.0,42379.0,0.20071687]
[1644737853533,0.13279124,42380.0,42378.0,0.20093872]
[1644737853775,0.13279124,42380.0,42378.0,0.20071687]
[1644737853975,0.13279124,42380.0,42378.0,0.20093872]
[1644737854378,0.13279124,42380.0,42378.0,0.20093689]
[1644737855175,0.13279124,42380.0,42378.0,0.20071504]
[1644737855376,0.13279124,42380.0,42378.0,0.20093689]
[1644737856477,0.13279124,42380.0,42377.0,0.20113153]
[1644737857430,0.27748107,42379.0,42378.0,0.330951]
[1644737857733,0.27748107,42379.0,42373.0,0.18861329]
[1644737857734,0.8,42376.0,42372.0,0.0981552]
[1644737857934,0.8,42376.0,42370.0,0.0011]
[1644737857935,0.380957,42373.0,42370.0,0.0011]
[1644737858131,0.330957,42372.0,42370.0,0.0011]
[1644737858330,0.25098173,42371.0,42370.0,0.0011]
[1644737858531,0.63473873,42371.0,42370.0,0.0011]
[1644737859131,0.383757,42371.0,42370.0,0.0011]
[1644737859333,0.0528,42371.0,42370.0,0.0011]
[1644737862595,0.0525,42371.0,42370.0,0.0011]
[1644737864400,0.383457,42371.0,42370.0,0.0011]
[1644737864597,0.0525,42371.0,42370.0,0.0011]
[1644737864932,0.383457,42371.0,42370.0,0.0011]
[1644737865927,0.05395656,42371.0,42370.0,0.0011]
[1644737866127,0.38491356,42371.0,42370.0,0.0011]
[1644737866927,0.34702325,42371.0,42370.0,0.0011]
[1644737868529,0.33241356,42371.0,42370.0,0.0011]
[1644737868984,0.00145656,42371.0,42370.0,0.0011]
[1644737869581,0.33241356,42371.0,42370.0,0.0011]
[1644737871682,0.00145656,42371.0,42370.0,0.0011]
[1644737871883,0.33241356,42371.0,42370.0,0.0011]
[1644737872730,0.33241356,42371.0,42368.0,0.00094613]
[1644737872731,0.00145656,42371.0,42368.0,0.00094613]
[1644737872928,0.00145656,42371.0,42368.0,0.00116451]
[1644737873128,0.00145656,42371.0,42368.0,0.00071838]
[1644737873931,0.00145656,42371.0,42368.0,0.0005]
[1644737874130,0.00145656,42371.0,42368.0,0.00071838]
[1644737875632,0.32569919,42373.0,42368.0,0.00071838]
[1644737876677,0.32569919,42373.0,42367.0,0.00076325]
[1644737876979,0.32569919,42373.0,42368.0,0.00044613]
[1644737877175,0.27569919,42373.0,42368.0,0.00044613]
[1644737877779,0.27569919,42373.0,42367.0,0.00076325]
[1644737877979,0.27569919,42373.0,42368.0,0.00044613]
[1644737879077,0.27569919,42373.0,42367.0,0.00076325]
[1644737879276,0.27569919,42373.0,42368.0,0.00044613]
[1644737880331,0.27569919,42373.0,42367.0,0.00076325]
[1644737880528,0.27569919,42373.0,42368.0,0.00044613]
[1644737881531,0.27569919,42373.0,42367.0,0.00076325]
[1644737881732,0.27569919,42373.0,42368.0,0.00044613]
[1644737881930,0.27569919,42373.0,42365.0,1.00060938]
[1644737885879,0.27569919,42373.0,42369.0,0.00065457]
[1644737886481,0.00145656,42373.0,42369.0,0.00065457]
[1644737886780,0.330957,42372.0,42369.0,0.00065457]
[1644737886981,0.00145656,42373.0,42369.0,0.00065457]
[1644737888933,0.00145656,42373.0,42367.0,0.00064808]
[1644737891178,0.330957,42372.0,42367.0,0.00064808]
[1644737891380,0.22763562,42368.0,42367.0,0.00064808]
[1644737891580,0.5127222,42368.0,42367.0,0.00064808]
[1644737891777,0.22763562,42368.0,42367.0,0.00064808]
[1644737891977,0.22763562,42368.0,42367.0,0.0008653]
[1644737892379,0.22763562,42368.0,42367.0,0.00064808]
[1644737892579,0.21356862,42368.0,42367.0,0.00064808]
[1644737893681,0.21356862,42368.0,42366.0,0.00021722]
[1644737893979,0.21356862,42368.0,42366.0,0.00086534]
[1644737893980,0.20856862,42368.0,42366.0,0.00086534]
[1644737894782,0.00145656,42373.0,42366.0,0.00086534]
[1644737895029,0.330957,42372.0,42366.0,0.00086534]
[1644737895228,0.27655049,42371.0,42366.0,0.00086534]
[1644737895428,0.330957,42372.0,42366.0,0.00086534]
[1644737895628,0.00174233,42368.0,42366.0,0.00086534]
[1644737898431,0.00174233,42368.0,42366.0,0.00021722]
[1644737898679,0.00174233,42368.0,42367.0,0.00064812]
[1644737900481,0.27364438,42370.0,42367.0,0.00064812]
[1644737900881,0.330957,42369.0,42367.0,0.00064812]
[1644737901085,0.27361894,42368.0,42367.0,0.00064812]
[1644737901683,0.60457594,42368.0,42367.0,0.00064812]
[1644737901884,0.27361894,42368.0,42367.0,0.00064812]
[1644737904438,0.60457594,42368.0,42367.0,0.00064812]
[1644737905439,0.60631827,42368.0,42367.0,0.00064812]
[1644737906685,0.60631827,42368.0,42366.0,0.00021722]
[1644737906686,0.60631827,42368.0,42365.0,0.4658082]
[1644737906884,0.330957,42367.0,42365.0,0.46625483]
[1644737907087,0.53125362,42367.0,42365.0,0.46625483]
[1644737907883,0.53125362,42367.0,42365.0,0.4658082]
[1644737908685,0.330957,42367.0,42365.0,0.4658082]
[1644737909085,0.61551711,42366.0,42365.0,0.4658082]
[1644737909686,1.05082305,42366.0,42365.0,0.4658082]
[1644737909928,1.21148019,42366.0,42365.0,0.4658082]
[1644737910330,0.97582279,42366.0,42365.0,0.4658082]
[1644737910529,0.97756143,42366.0,42365.0,0.4658082]
[1644737910729,0.61660767,42366.0,42365.0,0.4658082]
[1644737910929,0.77726481,42366.0,42365.0,0.4658082]
[1644737911130,0.61660767,42366.0,42365.0,0.4658082]
[1644737911329,0.77726481,42366.0,42365.0,0.4658082]
[1644737911532,0.61660767,42366.0,42365.0,0.4658082]
[1644737911730,0.77726481,42366.0,42365.0,0.4658082]
[1644737912236,0.97756143,42366.0,42365.0,0.4658082]
[1644737912431,0.81690429,42366.0,42365.0,0.4658082]
[1644737912729,0.61660767,42366.0,42365.0,0.4658082]
[1644737913329,0.33269564,42366.0,42365.0,0.4658082]
[1644737914785,0.53299226,42366.0,42365.0,0.4658082]
[1644737914986,0.33269564,42366.0,42365.0,0.4658082]
[1644737915385,0.63641904,42366.0,42365.0,0.4658082]
[1644737918035,0.79707618,42366.0,42365.0,0.4658082]
[1644737918236,0.63641904,42366.0,42365.0,0.4658082]
[1644737918436,0.79707618,42366.0,42365.0,0.4658082]
[1644737918635,0.63641904,42366.0,42365.0,0.4658082]
[1644737918838,0.79707618,42366.0,42365.0,0.4658082]
[1644737919037,0.63641904,42366.0,42365.0,0.4658082]
[1644737920338,0.63797647,42366.0,42365.0,0.4658082]
[1644737932642,0.63797647,42366.0,42365.0,0.46569753]
[1644737936483,0.83827309,42366.0,42365.0,0.46569753]
[1644737936684,0.730957,42365.0,42363.0,0.1323583]
[1644737936886,0.62155676,42364.0,42363.0,0.13280438]
[1644737937883,0.62155676,42364.0,42363.0,0.1323583]
[1644737940542,0.62300255,42364.0,42363.0,0.1323583]
[1644737940942,0.33240279,42364.0,42363.0,0.1323583]
[1644737941341,0.61045633,42364.0,42363.0,0.1323583]
[1644737943445,0.27949933,42364.0,42363.0,0.1323583]
[1644737943683,0.47979595,42364.0,42363.0,0.1323583]
[1644737944484,0.81075295,42364.0,42363.0,0.1323583]
[1644737944687,0.81075295,42364.0,42363.0,0.1173583]
[1644737945087,0.27949933,42364.0,42363.0,0.1173583]
[1644737945687,0.47979595,42364.0,42363.0,0.1173583]
[1644737946088,0.81075295,42364.0,42363.0,0.1173583]
[1644737946286,0.53269941,42364.0,42363.0,0.1173583]
[1644737946486,0.48417621,42364.0,42363.0,0.1173583]
[1644737947289,0.45543584,42364.0,42363.0,0.1173583]
[1644737948738,0.78639284,42364.0,42363.0,0.1173583]
[1644737949140,0.63889622,42364.0,42363.0,0.1173583]
[1644737949539,0.889267,42364.0,42363.0,0.1173583]
[1644737949941,1.04992414,42364.0,42363.0,0.1173583]
[1644737950443,0.330957,42363.0,42361.0,0.0115461]
[1644737950639,0.383757,42362.0,42361.0,0.0115461]
[1644737951191,0.383757,42362.0,42361.0,0.0111]
[1644737951684,0.63412778,42362.0,42361.0,0.0111]
[1644737951883,0.63412778,42362.0,42361.0,0.01131596]
[1644737952682,0.92279874,42362.0,42361.0,0.01131596]
[1644737953088,0.67242796,42362.0,42361.0,0.01131596]
[1644737953585,0.92279874,42362.0,42361.0,0.01131596]
[1644737954385,0.67242796,42362.0,42361.0,0.01131596]
[1644737956031,0.67410802,42362.0,42361.0,0.01131596]
[1644737958440,0.00168006,42362.0,42361.0,0.01131596]
[1644737958682,0.33263706,42362.0,42361.0,0.01131596]
[1644737966785,0.35,42361.0,42353.0,0.03722834]
[1644737966988,0.35,42361.0,42359.0,0.00044611]
[1644737966989,0.20028671,42360.0,42359.0,0.00044611]
[1644737967192,0.433757,42360.0,42359.0,0.00044611]
[1644737967387,0.433757,42360.0,42353.0,0.0017847]
[1644737967388,0.330957,42357.0,42353.0,0.0017847]
[1644737967587,0.20025751,42354.0,42353.0,0.0017847]
[1644737967788,0.330957,42354.0,42353.0,0.0017847]
[1644737967985,0.330957,42354.0,42353.0,0.00021599]
[1644737968185,0.330957,42354.0,42352.0,0.00241599]
[1644737968387,0.58127889,42354.0,42352.0,0.00241599]
[1644737968987,0.20019689,42353.0,42352.0,0.00241599]
[1644737969187,0.27543163,42353.0,42352.0,0.00241599]
[1644737969588,0.5914965,42353.0,42352.0,0.00241599]
[1644737970336,0.51626176,42353.0,42352.0,0.00241599]
[1644737971043,0.51626176,42353.0,42348.0,0.0022]
[1644737971044,1.153588,42352.0,42348.0,0.0022]
[1644737971239,1.153588,42352.0,42336.0,0.0011]
[1644737971240,1.130957,42347.0,42336.0,0.0011]
[1644737971447,1.130957,42347.0,42331.0,0.01]
[1644737971448,0.330957,42341.0,42331.0,0.01]
[1644737971643,0.330957,42339.0,42331.0,0.01]
[1644737971842,0.330957,42337.0,42333.0,0.00178297]
[1644737972040,0.330957,42335.0,42333.0,0.00178297]
[1644737972340,0.05,42340.0,42333.0,0.33273997]
[1644737972341,0.0528,42334.0,42333.0,0.33273997]
[1644737972539,0.97586346,42344.0,42333.0,0.33273997]
[1644737972540,0.0528,42337.0,42333.0,0.33273997]
[1644737972739,0.0528,42337.0,42332.0,0.287883]
[1644737973999,0.0528,42337.0,42331.0,0.401]
[1644737974196,0.0528,42337.0,42332.0,0.330957]
[1644737974393,0.0528,42337.0,42331.0,0.401]
[1644737974596,0.0528,42337.0,42332.0,0.06980491]
[1644737974796,0.330957,42341.0,42332.0,0.06980491]
[1644737974995,0.0528,42342.0,42333.0,0.25800479]
[1644737975496,0.00140997,42334.0,42333.0,0.25800479]
[1644737975897,0.00140997,42334.0,42332.0,0.06980491]
[1644737980744,0.00140843,42346.0,42333.0,0.65886905]
[1644737980945,0.00140843,42346.0,42345.0,0.07828762]
[1644737982591,0.00140843,42346.0,42345.0,0.40924462]
[1644737982790,0.00140843,42346.0,42345.0,0.64658987]
[1644737982991,0.00140843,42346.0,42345.0,0.89658987]
[1644737983195,0.00140843,42346.0,42345.0,0.633757]
[1644737983196,8.43e-06,42346.0,42345.0,0.633757]
[1644737983395,0.30037024,42358.0,42348.0,0.059031]
[1644737983691,0.00037024,42358.0,42349.0,0.433719]
[1644737983891,0.00037024,42358.0,42349.0,0.533719]
[1644737984192,0.00037024,42358.0,42354.0,0.330878]
[1644737984495,0.00037024,42358.0,42355.0,0.0528]
[1644737986940,0.00037024,42358.0,42355.0,0.05301515]
[1644737987339,0.00037024,42358.0,42355.0,0.0528]
[1644737987540,0.330957,42357.0,42355.0,0.05301515]
[1644737987841,0.00037024,42358.0,42355.0,0.05301515]
[1644737988688,0.00037024,42358.0,42355.0,0.0528]
[1644737988890,0.00037024,42358.0,42355.0,0.05301515]
[1644737989088,0.00037024,42358.0,42355.0,0.0528]
[1644737989487,0.00037024,42358.0,42354.0,0.00062497]
[1644737989690,0.00037024,42358.0,42351.0,0.28244308]
[1644737989887,0.00037024,42358.0,42354.0,0.00040982]
[1644737990790,0.00159363,42357.0,42352.0,0.00021515]
[1644737990991,0.00159363,42357.0,42354.0,0.00041475]
[1644737991991,0.00159363,42357.0,42355.0,0.21958948]
[1644737992634,0.00159363,42357.0,42356.0,0.25767643]
[1644737992834,0.00159363,42357.0,42355.0,0.21958948]
[1644737993241,0.00159363,42357.0,42356.0,0.26426743]
[1644737993436,0.00159363,42357.0,42355.0,0.21958948]
[1644737993837,0.00159363,42357.0,42356.0,0.25667602]
[1644737995436,0.00159363,42357.0,42355.0,0.21958948]
[1644737995637,0.00159363,42357.0,42355.0,0.22187874]
[1644737996792,0.00159363,42357.0,42356.0,0.24389162]
[1644737999094,0.00159363,42357.0,42356.0,0.57484862]
[1644738000339,0.00101253,42357.0,42356.0,0.24389162]
[1644738003888,0.00101253,42357.0,42356.0,0.57484862]
[1644738007193,0.00101253,42357.0,42356.0,0.72764862]
[1644738007440,0.00101253,42357.0,42356.0,0.82764862]
[1644738008039,0.00101253,42357.0,42356.0,2.07664862]
[1644738008741,6.877e-05,42358.0,42357.0,1.2875]
[1644738008945,6.877e-05,42358.0,42357.0,2.6393]
[1644738009141,6.877e-05,42358.0,42357.0,2.7393]
[1644738010942,0.0004022,42360.0,42358.0,0.85]
[1644738011193,0.03,42373.0,42360.0,1.249]
[1644738011389,0.03,42373.0,42369.0,0.06421339]
[1644738011588,0.03,42373.0,42366.0,0.05901]
[1644738011792,0.03,42373.0,42367.0,0.330957]
[1644738012391,0.03,42373.0,42372.0,0.21232853]
[1644738013192,0.03,42373.0,42372.0,0.54328553]
[1644738014594,0.03,42373.0,42372.0,0.21232853]
[1644738015038,0.03,42373.0,42372.0,0.54328553]
[1644738015448,0.03,42373.0,42372.0,0.21232853]
[1644738015937,0.03140058,42373.0,42372.0,0.21232853]
[1644738016137,0.03140058,42373.0,42372.0,0.54328553]
[1644738017037,0.02640058,42373.0,42372.0,0.54328553]
[1644738017440,0.02640058,42373.0,42370.0,0.0528]
[1644738017740,0.02640058,42373.0,42371.0,0.330957]
[1644738017941,0.02640058,42373.0,42371.0,0.383757]
[1644738018539,0.02640058,42373.0,42372.0,0.330957]
[1644738019790,0.02640058,42373.0,42372.0,0.5902032]
[1644738020194,0.02640058,42373.0,42372.0,0.2592462]
[1644738020497,0.02640058,42373.0,42372.0,0.5902032]
[1644738020894,0.02890772,42373.0,42372.0,0.5902032]
[1644738022841,0.02890772,42373.0,42372.0,0.6430032]
[1644738026691,0.02890772,42373.0,42372.0,0.25740624]
[1644738027107,0.00037873,42375.0,42373.0,1.137243]
[1644738027292,0.00037873,42375.0,42374.0,1.79939556]
[1644738027492,0.00037873,42375.0,42374.0,0.50039556]
[1644738027692,0.00037873,42375.0,42374.0,0.307397]
[1644738028091,0.00023856,42386.0,42384.0,0.26504131]
[1644738028298,0.00023856,42387.0,42384.0,0.26504131]
[1644738028492,0.30331152,42388.0,42378.0,0.26037349]
[1644738028493,0.00023856,42386.0,42380.0,0.330974]
[1644738028694,0.00023856,42387.0,42378.0,0.26037349]
[1644738028993,0.30355008,42388.0,42378.0,0.26037349]
[1644738029193,0.00023856,42387.0,42378.0,0.20138149]
[1644738029395,1.91637841,42387.0,42378.0,0.20138149]
[1644738029694,0.00014029,42385.0,42380.0,0.330974]
[1644738030142,0.00014029,42385.0,42380.0,0.060793]
[1644738030543,0.00023856,42387.0,42379.0,0.24983718]
[1644738030747,0.00042418,42385.0,42380.0,0.330974]
[1644738031644,0.00023856,42387.0,42380.0,0.330974]
[1644738031843,0.00042418,42385.0,42379.0,0.51532848]
[1644738032045,0.00042418,42385.0,42380.0,0.330974]
[1644738032745,0.00023856,42387.0,42380.0,0.330974]
[1644738032944,0.06639835,42388.0,42379.0,0.24983718]
[1644738032945,0.06663691,42388.0,42379.0,0.24983718]
[1644738033145,0.00042418,42385.0,42380.0,0.330974]
[1644738033992,0.00023856,42387.0,42380.0,0.330974]
[1644738034190,0.06663691,42388.0,42379.0,0.24983718]
[1644738034390,0.00041365,42385.0,42380.0,0.330974]
[1644738035191,0.00023856,42387.0,42380.0,0.330974]
[1644738035393,0.06663691,42388.0,42380.0,0.330974]
[1644738035591,0.00041365,42385.0,42380.0,0.330974]
[1644738035792,0.00041365,42385.0,42383.0,0.060786]
[1644738036391,0.04435981,42381.0,42378.0,0.330952]
[1644738037193,0.03435981,42381.0,42378.0,0.330952]
[1644738037453,0.03435981,42381.0,42379.0,0.25903274]
[1644738037754,0.03435981,42381.0,42380.0,0.330952]
[1644738040656,0.03540676,42381.0,42380.0,0.330952]
[1644738044296,0.03540676,42381.0,42380.0,0.59945499]
[1644738044694,0.03540676,42381.0,42380.0,0.330952]
[1644738044942,0.03540676,42381.0,42380.0,0.60786395]
[1644738045842,0.03638801,42381.0,42380.0,0.330952]
[1644738052443,0.02638801,42381.0,42380.0,0.330952]
[1644738055948,0.02756443,42381.0,42380.0,0.330952]
[1644738056700,0.05459877,42373.0,42372.0,0.38273119]
[1644738056895,0.05459877,42373.0,42372.0,0.26803119]
[1644738057096,0.11903818,42373.0,42372.0,0.31803119]
[1644738057398,0.11903818,42373.0,42372.0,0.05]
[1644738057595,0.11903818,42373.0,42371.0,0.05]
[1644738060452,0.11903818,42373.0,42365.0,0.015]
[1644738060453,0.05699493,42373.0,42365.0,0.015]
[1644738061653,0.07319085,42372.0,42365.0,0.015]
[1644738062150,0.00041563,42371.0,42365.0,0.015]
[1644738062548,0.27134586,42371.0,42364.0,0.20946489]
[1644738062949,0.27093023,42371.0,42364.0,0.20946489]
[1644738063149,0.00041564,42370.0,42364.0,0.20946489]
[1644738063995,0.27093023,42371.0,42362.0,0.6435]
[1644738064398,0.00041564,42369.0,42362.0,0.05]
[1644738064694,0.00041564,42369.0,42361.0,0.218021]
[1644738064897,0.00041564,42369.0,42363.0,0.2557281]
[1644738065294,0.07319085,42372.0,42363.0,0.3057281]
[1644738065495,0.00041565,42368.0,42363.0,0.3057281]
[1644738066494,0.0010292,42370.0,42363.0,0.3057281]
[1644738066694,0.00041565,42368.0,42363.0,0.3057281]
[1644738067747,0.0010292,42370.0,42363.0,0.3057281]
[1644738067946,0.00041565,42368.0,42363.0,0.3057281]
[1644738068947,0.0010292,42370.0,42363.0,0.3057281]
[1644738069148,0.00041565,42368.0,42363.0,0.3057281]
[1644738070148,0.0010292,42370.0,42364.0,0.08180377]
[1644738070349,0.00041565,42368.0,42364.0,0.08180377]
[1644738070548,0.00102614,42367.0,42364.0,0.08180377]
[1644738070751,0.00102614,42367.0,42365.0,0.059009]
[1644738075958,0.00102614,42367.0,42366.0,0.26626853]
[1644738077559,0.00102614,42367.0,42366.0,0.36626853]
[1644738078707,0.00102614,42367.0,42366.0,0.41906853]
[1644738078708,0.00071478,42367.0,42366.0,0.41906853]
[1644738078911,0.00110821,42368.0,42367.0,0.85]
[1644738079111,0.00041565,42369.0,42367.0,1.56982113]
[1644738079305,0.00041565,42369.0,42368.0,0.36064391]
[1644738079506,0.05459877,42373.0,42370.0,0.36530105]
[1644738079706,0.05459877,42373.0,42372.0,1.44711338]
[1644738079918,0.05459877,42373.0,42372.0,1.49991338]
[1644738081009,0.05459877,42373.0,42372.0,0.0528]
[1644738081407,0.05459877,42373.0,42372.0,0.31725227]
[1644738081707,0.05459877,42373.0,42372.0,0.0528]
[1644738085854,0.05581873,42373.0,42372.0,0.05523393]
[1644738086305,0.05581873,42373.0,42369.0,0.117974]
[1644738086500,0.05581873,42373.0,42370.0,0.0528]
[1644738086697,0.05581873,42373.0,42369.0,0.03439289]
[1644738086896,0.05581873,42373.0,42370.0,0.0528]
[1644738087395,0.05581873,42373.0,42369.0,0.03439289]
[1644738088398,0.05623198,42373.0,42369.0,0.03439289]
[1644738088597,0.05623198,42373.0,42364.0,0.72025329]
[1644738088598,0.05623198,42373.0,42364.0,0.66745329]
[1644738088897,0.05623198,42373.0,42365.0,0.05]
[1644738089297,0.05581873,42373.0,42365.0,0.05]
[1644738089498,0.00041326,42371.0,42365.0,0.05]
[1644738090550,0.05581873,42373.0,42365.0,0.05]
[1644738090749,0.00041326,42371.0,42365.0,0.05]
[1644738091751,0.00097475,42372.0,42365.0,0.05]
[1644738091951,0.00041663,42371.0,42365.0,0.05]
[1644738092355,0.22394583,42371.0,42363.0,0.36880306]
[1644738092553,0.22394583,42371.0,42362.0,0.25079106]
[1644738092756,0.22394583,42371.0,42362.0,0.30079106]
[1644738092953,0.2235292,42371.0,42362.0,0.05]
[1644738093155,0.06423428,42370.0,42361.0,0.59389409]
[1644738093352,0.06423428,42370.0,42361.0,0.84388228]
[1644738094897,0.00041663,42371.0,42363.0,0.059012]
[1644738095301,0.270209,42372.0,42363.0,0.059012]
[1644738095498,0.00041614,42371.0,42363.0,0.059012]
[1644738096097,0.00108101,42370.0,42363.0,0.059012]
[1644738097650,0.05,42367.0,42359.0,0.05]
[1644738097853,0.0528,42369.0,42359.0,0.00041625]
[1644738097854,0.3,42368.0,42359.0,0.00041625]
[1644738098548,0.06781336,42361.0,42359.0,0.00041625]
[1644738098949,0.06781336,42361.0,42354.0,0.25048856]
[1644738099150,0.06781336,42361.0,42358.0,0.00041632]
[1644738099753,0.27330008,42363.0,42358.0,0.00041632]
[1644738100053,0.22408907,42364.0,42354.0,0.30951456]
[1644738100255,0.29010822,42366.0,42358.0,0.00027837]
[1644738101299,0.08211713,42363.0,42354.0,0.30951456]
[1644738102602,0.26672292,42362.0,42354.0,0.30951456]
[1644738102801,0.08211713,42363.0,42356.0,0.00044605]
[1644738103009,0.30779702,42366.0,42356.0,0.00044605]
[1644738103901,0.30779702,42366.0,42359.0,0.0004254]
[1644738104501,0.06625327,42363.0,42359.0,0.0004254]
[1644738104954,0.06625327,42363.0,42354.0,0.30951456]
[1644738105153,0.06625327,42363.0,42359.0,0.0004254]
[1644738105357,0.30779702,42366.0,42359.0,0.0004254]
[1644738105754,0.0022184,42362.0,42359.0,0.0004254]
[1644738106156,0.0022184,42362.0,42354.0,0.30951456]
[1644738106354,0.0022184,42362.0,42358.0,0.00042541]
[1644738107357,0.0022184,42362.0,42353.0,0.5905]
[1644738107559,0.0022184,42362.0,42358.0,0.00042541]
[1644738108559,0.0022184,42362.0,42355.0,0.25941152]
[1644738108801,0.0022184,42362.0,42358.0,0.00041518]
[1644738109401,0.0022184,42362.0,42358.0,0.00034652]
[1644738109803,0.0022184,42362.0,42355.0,0.25941152]
[1644738110000,0.0022184,42362.0,42354.0,0.059025]
[1644738110706,0.0022184,42362.0,42354.0,0.14693761]
[1644738111101,0.0022184,42362.0,42356.0,0.00027775]
[1644738111700,0.0022184,42362.0,42358.0,0.22060988]
[1644738112303,0.0022184,42362.0,42358.0,0.22105592]
[1644738112553,0.0021565,42362.0,42358.0,0.22105592]
[1644738113460,0.0021565,42362.0,42358.0,0.22060988]
[1644738113655,0.0021565,42362.0,42358.0,0.22102204]
[1644738114659,0.0021565,42362.0,42358.0,0.22060988]
[1644738114859,0.0021565,42362.0,42358.0,0.22102204]
[1644738115660,0.0021565,42362.0,42358.0,0.28004104]
[1644738115860,0.0021565,42362.0,42358.0,0.27962888]
[1644738116063,0.0021565,42362.0,42358.0,0.28004104]
[1644738116708,0.0021565,42362.0,42357.0,0.19234173]
[1644738117504,0.0021565,42362.0,42361.0,0.0874149]
[1644738121665,0.0021565,42362.0,42361.0,1.3892149]
[1644738121865,0.00194086,42362.0,42361.0,1.4892149]
[1644738125801,0.00220298,42362.0,42361.0,1.4892149]
[1644738128054,0.00220298,42362.0,42361.0,1.7292149]
[1644738138050,0.00220298,42362.0,42361.0,1.97991583]
[1644738138704,0.00220298,42362.0,42361.0,1.7292149]
[1644738139901,0.00220298,42362.0,42361.0,1.97991583]
[1644738140100,0.00220298,42362.0,42361.0,1.7292149]
[1644738140301,0.00220298,42362.0,42361.0,1.97991583]
[1644738140501,0.00220298,42362.0,42361.0,1.7292149]
[1644738140702,0.00220298,42362.0,42361.0,1.97991583]
[1644738140900,0.00220298,42362.0,42361.0,1.7292149]
[1644738141902,0.00159339,42362.0,42361.0,1.7292149]
[1644738145769,0.00216912,42362.0,42361.0,1.7292149]
[1644738148403,0.00216912,42362.0,42361.0,1.97991583]
[1644738149204,0.00216912,42362.0,42361.0,1.7292149]
[1644738151856,0.00216912,42362.0,42361.0,1.97991583]
[1644738152955,0.00216912,42362.0,42361.0,1.7292149]
[1644738156308,0.00216912,42362.0,42361.0,2.03026671]
[1644738157454,0.00216912,42362.0,42361.0,2.12504621]
[1644738159255,0.00216912,42362.0,42361.0,1.8239944]
[1644738160854,0.00300675,42362.0,42361.0,1.8239944]
[1644738161904,0.00187256,42362.0,42361.0,1.8239944]
[1644738162301,0.00187256,42362.0,42361.0,2.31483567]
[1644738164505,0.00187256,42362.0,42361.0,1.96360856]
[1644738165953,0.00144883,42362.0,42361.0,1.96360856]
[1644738166153,0.00144883,42362.0,42361.0,2.06360856]
[1644738168354,0.00144883,42362.0,42361.0,0.81460856]
[1644738168554,0.00144883,42362.0,42361.0,1.4483779]
[1644738170703,0.00153726,42363.0,42361.0,1.4483779]
[1644738170903,0.00153726,42363.0,42362.0,0.28298816]
[1644738172304,0.00153726,42363.0,42362.0,1.53198816]
[1644738172551,0.00153726,42363.0,42362.0,0.28298816]
[1644738172750,0.00153726,42363.0,42362.0,0.38983674]
[1644738173352,0.00153726,42363.0,42362.0,0.85816428]
[1644738173553,0.00153726,42363.0,42362.0,0.50670962]
[1644738176200,0.00296523,42363.0,42362.0,0.50670962]
[1644738177401,0.00296523,42363.0,42362.0,0.55950962]
[1644738179100,0.00296523,42363.0,42362.0,1.80850962]
[1644738180157,0.00038052,42365.0,42363.0,0.85]
[1644738180358,0.00038052,42365.0,42364.0,1.47767388]
[1644738180661,0.3,42375.0,42364.0,1.47767388]
[1644738180857,0.00014067,42367.0,42366.0,1.249]
[1644738181058,0.00014067,42367.0,42366.0,1.41867288]
[1644738181357,0.3,42375.0,42367.0,0.85]
[1644738181556,0.3,42375.0,42373.0,0.29776758]
[1644738181758,0.00023885,42376.0,42375.0,0.07066667]
[1644738181957,0.30023885,42381.0,42375.0,0.32162254]
[1644738182157,0.00023885,42380.0,42375.0,0.32162254]
[1644738182358,0.30023885,42381.0,42375.0,0.32162254]
[1644738182559,0.00023885,42380.0,42375.0,0.32162254]
[1644738182762,0.30023885,42381.0,42375.0,0.32162254]
[1644738182960,0.00023885,42380.0,42375.0,0.32162254]
[1644738183165,0.30023885,42381.0,42375.0,0.32162254]
[1644738183361,0.00039803,42380.0,42376.0,0.25095587]
[1644738183561,0.00015918,42380.0,42376.0,0.25095587]
[1644738184212,0.00023885,42382.0,42376.0,0.25095587]
[1644738184409,0.00023885,42383.0,42377.0,0.058991]
[1644738184611,0.00015918,42380.0,42377.0,0.058991]
[1644738185614,0.00023885,42380.0,42377.0,0.058991]
[1644738185818,0.07665537,42376.0,42375.0,0.07066667]
[1644738186017,0.00043707,42381.0,42380.0,0.24952113]
[1644738186816,0.00023878,42383.0,42380.0,0.24952113]
[1644738187018,0.00042317,42383.0,42380.0,0.24952113]
[1644738187317,0.00066195,42383.0,42380.0,0.24952113]